[Event "Romanian Team Blitz Open 2022"]
[Site "Sebes"]
[Date "2022.12.04"]
[Round "6.6"]
[White "Secheres, Adrian-Simion"]
[Black "Cosma, Ioan"]
[Result "1/2-1/2"]
[ECO "D41"]
[WhiteElo "2365"]
[BlackElo "2368"]
[Annotator "TA"]
[PlyCount "167"]
[EventDate "2022.12.04"]
[EventType "blitz"]
[EventCountry "ROU"]
[SourceTitle "playchess.com"]
[Source "ChessBase"]
[SourceQuality "1"]
[TimeControl "180+2"]

{[%evp 26,167,28,0,10,0,0,0,0,0,53,24,25,21,28,-9,0,0,0,-54,-50,-54,-58,-107,-18,-65,0,-3,10,2,4,4,62,2,2,4,4,3,10,4,12,0,2,0,0,0,0,0,0,0,0,0,1,2,14,0,0,0,0,0,9,9,42,78,73,70,97,0,11,11,11,11,11,11,11,11,23,23,23,25,41,37,39,33,40,0,10,0,84,33,84,0,11,0,26,11,33,39,37,37,89,37,40,33,40,26,40,40,41,0,41,41,41,0,0,0,0,0,0,0,0,0,0,0,0,0,0,0,0,0,0,0,0,0,0,0,0,0,0,0,0,0,0,0]} 1. d4 {[%emt 0:00:02]} d5 {[%emt 0:00:00]} 2. c4 {[%emt 0:00:01]} e6 {[%emt 0:00:01]} 3. Nc3 {[%emt 0:00:02]} Nf6 {[%emt 0:00:01]} 4. Nf3 {[%emt 0:00:01]} c5 {[%emt 0:00:02]} 5. cxd5 Nxd5 {[%emt 0:00:01]} 6. e4 {[%emt 0:00:03]} Nxc3 {[%emt 0:00:02]} 7. bxc3 {[%emt 0:00:01]} cxd4 {[%emt 0:00:01]} 8. cxd4 {[%emt 0:00:01]} Bb4+ {[%emt 0:00:01]} 9. Bd2 {[%emt 0:00:01]} Bxd2+ {[%emt 0:00:01]} 10. Qxd2 {[%emt 0:00:02]} O-O {[%emt 0:00:02]} 11. Bc4 {[%emt 0:00:01]} b6 {[%emt 0:00:00]} 12. O-O {[%emt 0:00:03]} Bb7 {[%emt 0:00:01]} 13. Rfe1 {[%emt 0:00:01]} Nd7 {[%emt 0:00:01]} 14. Rad1 {[%emt 0:00:01]} Rc8 {[%emt 0:00:01] D41: Queen's Gambit Declined: Semi-Tarrasch with 5 cxd5.} 15. Bb3 {[%emt 0:00:01]} Re8 {[%emt 0:00:01]} 16. h3 {[%emt 0:00:01]} h6 {[%emt 0:00:03]} 17. Re3 {[%emt 0:00:04]} b5 {[%emt 0:00:05]} (17... Nf6 $11) 18. Qe2 {[%emt 0:00:08]} Qb6 {[%emt 0:00:09] [#]} 19. d5 $146 {[%emt 0:00:24]} ({Predecessor:} 19. e5 a5 20. Nh4 a4 21. Bc2 Nf8 22. Bb1 Rc4 23. Qg4 h5 24. Qxh5 Rxd4 25. Rde1 {0-1 (48) Goryachkina,A (2579)-Ning,K (2327) Chess.com INT 2020}) 19... exd5 {[%emt 0:00:14]} 20. Bxd5 {[%emt 0:00:06]} Nf6 {[%emt 0:00:20]} 21. Bxb7 {[%emt 0:00:58]} Qxb7 {[%emt 0:00:01]} 22. Re1 {[%emt 0:00:00]} (22. Nh4 $11) 22... Rc4 $15 {[%emt 0:00:18][%cal Rc4e4]} 23. Nd2 {[%emt 0:00:57]} Rc2 {[%emt 0:00:17]} 24. Qd3 {[%emt 0:00:03]} (24. e5 $15 Nd5 25. Rg3) 24... Qc8 {[%emt 0:00:40]} (24... Rxa2 $17 {Strongly threatening ...Qd7.} 25. e5 Qd5) 25. Nb3 {[%emt 0:00:12]} (25. e5 $11 Rd8 26. Qb3) 25... b4 {[%emt 0:00:16]} (25... Rxa2 26. e5 Nd7 27. Qxb5 $11) (25... Qc4 $15) 26. e5 $36 {[%emt 0:00:04][%mdl 2048] White is more active.} Rc3 {[%emt 0:00:25]} 27. Qb5 {[%emt 0:00:07]} Rxe3 {[%emt 0:00:26]} 28. Rxe3 {[%emt 0:00:01]} Nd7 {[%emt 0:00:11]} ({Better is} 28... a6 $1 $11 29. Qa5 (29. Qxb4 $2 Nd5 $19) 29... Nd7) 29. e6 {[%emt 0:00:10] White is more active.} ({Much worse is} 29. Qxb4 Rxe5 30. Qc3 Qe8 $11) (29. f4 $14) 29... Rxe6 {[%emt 0:00:04]} 30. Rxe6 {[%emt 0:00:01]} fxe6 {[%emt 0:00:01]} 31. Qxb4 {[%emt 0:00:01][%mdl 4096] Endgame KQN-KQN} Nf8 {[%emt 0:00:05]} (31... Qa6 $5 {[%cal Ra6a2]}) 32. Nc5 {[%emt 0:00:14]} Qc6 {[%emt 0:00:04]} 33. g3 {[%emt 0:00:07]} Qd5 {[%emt 0:00:01]} 34. a4 {[%emt 0:00:03]} Qd1+ {[%emt 0:00:02]} 35. Kg2 {[%emt 0:00:01]} Qd5+ {[%emt 0:00:01]} 36. Kh2 {[%emt 0:00:03]} Qa2 {[%emt 0:00:02]} 37. Ne4 {[%emt 0:00:02]} Qd5 {[%emt 0:00:03]} 38. Nc3 {[%emt 0:00:03]} Qf5 {[%emt 0:00:02]} 39. Qd4 {[%emt 0:00:01]} Qa5 {[%emt 0:00:03]} 40. Ne4 {[%emt 0:00:03]} Qd5 {[%emt 0:00:04]} 41. Qe3 {[%emt 0:00:01]} (41. Qxa7 $2 {is the wrong capture.} Qxe4 42. a5 Qc6 $19) 41... a5 {[%emt 0:00:02]} 42. Nc3 {[%emt 0:00:02]} Qb3 {[%emt 0:00:04]} 43. Qc5 {[%emt 0:00:03]} Qc2 {[%emt 0:00:04]} 44. Kg2 {[%emt 0:00:02]} (44. Qxa5 $2 {perishes.} Qxf2+ 45. Kh1 Qxg3 $19) 44... Qf5 {[%emt 0:00:01]} 45. Qxf5 exf5 $16 {KN-KN} 46. Nd5 {[%emt 0:00:05]} (46. Kf3 $16) 46... Nd7 {[%emt 0:00:05]} 47. Ne7+ {[%emt 0:00:01]} Kf8 {[%emt 0:00:01]} 48. Nxf5 {[%emt 0:00:01]} Nc5 {[%emt 0:00:01]} 49. Nd4 {[%emt 0:00:01]} Nxa4 {[%emt 0:00:01]} 50. Nc6 {[%emt 0:00:01]} Nc5 {[%emt 0:00:02]} 51. Nxa5 {[%emt 0:00:00]} Ne6 {[%emt 0:00:00]} 52. Kf3 {[%emt 0:00:02]} g6 {[%emt 0:00:01]} 53. h4 {[%emt 0:00:02]} Kf7 {[%emt 0:00:01]} 54. Nc6 {[%emt 0:00:01]} Kf6 {[%emt 0:00:00]} 55. Ke4 {[%emt 0:00:02]} Nc5+ {[%emt 0:00:02]} 56. Ke3 {[%emt 0:00:02]} Ne6 {[%emt 0:00:01]} (56... g5 $11) 57. Nd4 {[%emt 0:00:01]} ({White should play} 57. g4 $1 $16) 57... Nc5 {[%emt 0:00:01] [#]} (57... Nc7 $14) 58. Kf4 {[%emt 0:00:02]} (58. g4 $1 $16) 58... Nd3+ $11 {[%emt 0:00:01]} 59. Ke3 {[%emt 0:00:00]} Ne5 {[%emt 0:00:01]} 60. Ne2 {[%emt 0:00:02]} Ng4+ {[%emt 0:00:02]} 61. Kf3 {[%emt 0:00:02]} Ne5+ {[%emt 0:00:01]} 62. Ke4 {[%emt 0:00:01]} Nd7 {[%emt 0:00:01] [#]} (62... g5 $14) 63. Nc3 {[%emt 0:00:03]} (63. g4 $1 $16) 63... Nc5+ {[%emt 0:00:02]} 64. Ke3 {[%emt 0:00:01]} Ke5 {[%emt 0:00:02] Inhibits Ne4.} 65. f3 {[%emt 0:00:01]} h5 {[%emt 0:00:02]} 66. Ne2 {[%emt 0:00:01]} Ne6 {[%emt 0:00:01]} 67. Nc1 {[%emt 0:00:02]} Nc7 {[%emt 0:00:03]} 68. Nd3+ {[%emt 0:00:01]} Kf5 {[%emt 0:00:00]} 69. Nb4 {[%emt 0:00:02] Against Nd5+} g5 {[%emt 0:00:04] The position is equal.} 70. hxg5 {[%emt 0:00:02]} Kxg5 {[%emt 0:00:00]} 71. Ke4 {[%emt 0:00:03]} h4 {[%emt 0:00:03]} 72. f4+ {[%emt 0:00:04]} Kg4 {[%emt 0:00:03]} 73. gxh4 {[%emt 0:00:01]} Kxh4 {[%emt 0:00:01]} 74. Ke5 {[%emt 0:00:02]} Kh5 {[%emt 0:00:08]} 75. Nd5 {[%emt 0:00:04]} Nb5 {[%emt 0:00:05]} 76. f5 {[%emt 0:00:02]} Kh6 {[%emt 0:00:02]} 77. f6 {[%emt 0:00:03]} Kg6 {[%emt 0:00:01]} 78. Ke6 {[%emt 0:00:04]} Nd4+ {[%emt 0:00:02]} 79. Ke7 {[%emt 0:00:09] Threatens to win with Nf4+.} Nf5+ {[%emt 0:00:03]} 80. Kf8 {[%emt 0:00:04]} Nd6 {[%emt 0:00:09]} 81. Ke7 {[%emt 0:00:00]} Nf5+ {[%emt 0:00:01]} 82. Ke8 {[%emt 0:00:01]} Nd6+ {[%emt 0:00:03]} 83. Kd7 {[%emt 0:00:01]} (83. Ke7 $5 Nf5+ $8 $11) 83... Ne4 {[%emt 0:00:02]} 84. Ke7 {[%emt 0:00:10] Weighted Error Value: White=0.17 (very precise) /Black=0.16 (very precise)} 1/2-1/2

[Event "Romanian Team Blitz Open 2022"]
[Site "Sebes"]
[Date "2022.12.04"]
[Round "6.7"]
[White "Itkis, Boris"]
[Black "Nastore, Pavel-Alexandru"]
[Result "1/2-1/2"]
[ECO "B37"]
[WhiteElo "2343"]
[BlackElo "2218"]
[Annotator "TA"]
[PlyCount "89"]
[EventDate "2022.12.04"]
[EventType "blitz"]
[EventCountry "ROU"]
[SourceTitle "playchess.com"]
[Source "ChessBase"]
[SourceQuality "1"]
[TimeControl "180+2"]

{[%evp 18,89,33,8,29,11,32,-4,8,0,28,33,50,34,66,27,47,43,47,49,38,56,52,47,92,46,62,52,70,79,68,0,22,0,0,0,0,0,0,0,0,0,0,0,0,0,0,0,0,0,0,0,0,-16,0,0,0,0,0,-38,0,0,0,-282,-252,-1715,0,0,0,0,0,0,0,0]} 1. Nf3 {[%emt 0:00:01]} Nf6 {[%emt 0:00:01]} 2. c4 {[%emt 0:00:01]} c5 {[%emt 0:00:06]} 3. Nc3 {[%emt 0:00:04]} g6 {[%emt 0:00:03]} 4. d4 {[%emt 0:00:02]} cxd4 5. Nxd4 {[%emt 0:00:01]} Bg7 {[%emt 0:00:03]} 6. e4 {[%emt 0:00:01]} d6 {[%emt 0:00:01]} 7. Be2 {[%emt 0:00:02]} O-O {[%emt 0:00:02]} 8. O-O {[%emt 0:00:06]} Nc6 {[%emt 0:00:02]} 9. Nc2 {[%emt 0:00:00]} Be6 {[%emt 0:00:07]} 10. Bd2 {[%emt 0:00:03]} Rc8 {[%emt 0:00:08] B37: Sicilian: Maroczy Bind with 5...Bg7, sidelines.} 11. Rb1 {[%emt 0:00:04]} a6 {[%emt 0:00:05]} 12. f3 {[%emt 0:00:13]} Nd7 {[%emt 0:00:08]} 13. Kh1 {[%emt 0:00:06] [#]} Nce5 $146 {[%emt 0:00:19]} ({Predecessor:} 13... Nd4 14. Nxd4 Bxd4 15. Bh6 Bg7 16. Bxg7 Kxg7 17. Qd4+ f6 18. Nd5 Bf7 19. Rfd1 Ne5 {0-1 (53) Yu,Z (2205)-MacKinnon,K (2186) Montreal 2015}) 14. b3 {[%emt 0:00:14] aiming for f4.} Nc5 {[%emt 0:00:16]} 15. Ne3 {[%emt 0:00:14]} Nc6 {[%emt 0:00:09][%cal Be5c6,Bc6d4,Bd4e2][%mdl 32]} 16. Ncd5 {[%emt 0:00:06]} (16. f4 $5 {[%cal Rf4f5]}) 16... Nd4 {[%emt 0:00:05]} 17. Bc3 {[%emt 0:00:18]} Nxe2 {[%emt 0:00:06]} 18. Bxg7 {[%emt 0:00:02]} Kxg7 {[%emt 0:00:22]} 19. Qxe2 {[%emt 0:00:01]} Bxd5 {[%emt 0:00:04]} 20. Nxd5 {[%emt 0:00:04]} Ne6 {[%emt 0:00:09]} 21. Qb2+ {[%emt 0:00:06]} ({Better is} 21. Rbd1 $16) 21... f6 $14 {[%emt 0:00:07]} 22. f4 {[%emt 0:00:23] White is much more active.} b5 {[%emt 0:00:32]} 23. cxb5 {[%emt 0:00:01]} axb5 {[%emt 0:00:01]} 24. Rbc1 {[%emt 0:00:02]} (24. f5 $14 Nc7 25. Ne3) 24... Nc5 {[%emt 0:00:05]} 25. Qe2 {[%emt 0:00:11]} e6 {[%emt 0:00:06] Against f5} 26. Nb4 {[%emt 0:00:03]} Qa5 {[%emt 0:00:05]} 27. Nd3 {[%emt 0:00:10]} Nxd3 {[%emt 0:00:10]} 28. Qxd3 {[%emt 0:00:01]} Qb6 {[%emt 0:00:04]} 29. h3 {[%emt 0:00:05]} Rc5 {[%emt 0:00:09]} 30. b4 {[%emt 0:00:05]} Rc6 {[%emt 0:00:02]} 31. Rxc6 {[%emt 0:00:05]} Qxc6 $11 {[%emt 0:00:27][%mdl 4096] Endgame KQR-KQR} 32. Rd1 Rd8 {[%emt 0:00:00]} 33. e5 {[%emt 0:00:16]} fxe5 {[%emt 0:00:00]} 34. fxe5 {[%emt 0:00:01]} d5 {[%emt 0:00:00]} 35. Rf1 {[%emt 0:00:02]} Rf8 {[%emt 0:00:00]} (35... d4 {is more complex.} 36. Qd2 d3 37. Kh2 Qd7) 36. Rxf8 Kxf8 {[%emt 0:00:00] KQ-KQ} 37. Qf3+ {[%emt 0:00:08]} Kg8 {[%emt 0:00:00]} 38. Kh2 {[%emt 0:00:05]} Qc7 {[%emt 0:00:00]} (38... Qd7 $5 {[%cal Rd5d4]}) 39. Qf6 {[%emt 0:00:03]} Qd7 {[%emt 0:00:01] [#] Strongly threatening ...d4.} 40. h4 $2 {[%emt 0:00:17][%mdl 8192]} (40. Kg3 $11) 40... d4 $19 {[%emt 0:00:02]} 41. h5 $2 {[%emt 0:00:01]} (41. Qg5 d3 42. Qd2) 41... gxh5 $2 {[%emt 0:00:02]} (41... d3 $19 {Hoping for ...d2.} 42. Qf3 d2 43. Qa8+ Kf7) 42. Qg5+ $11 {[%emt 0:00:00] The position is equal.} Kh8 {[%emt 0:00:02]} 43. Qf6+ {[%emt 0:00:02]} Kg8 {[%emt 0:00:01]} 44. Qg5+ {[%emt 0:00:00]} Kh8 {[%emt 0:00:04]} 45. Qf6+ {[%emt 0:00:01] Weighted Error Value: White=0.46/Black=0.24 (precise)} 1/2-1/2

[Event "Romanian Team Blitz Open 2022"]
[Site "Sebes"]
[Date "2022.12.04"]
[Round "6.8"]
[White "Ciorgovean, Iustin"]
[Black "Bulau, Andrei-Cristian"]
[Result "1/2-1/2"]
[ECO "D78"]
[WhiteElo "2319"]
[BlackElo "2154"]
[Annotator "TA"]
[PlyCount "60"]
[EventDate "2022.12.04"]
[EventType "blitz"]
[EventCountry "ROU"]
[SourceTitle "playchess.com"]
[Source "ChessBase"]
[SourceQuality "1"]
[TimeControl "180+2"]

{[%evp 11,60,7,16,0,13,5,33,34,79,81,89,74,85,84,91,87,97,58,82,68,208,237,199,212,311,309,333,311,319,295,323,318,308,294,273,262,262,254,249,239,248,239,254,254,254,254,247,0,247,0,239]} 1. d4 {[%emt 0:00:02]} d5 {[%emt 0:00:01]} 2. c4 {[%emt 0:00:01]} c6 {[%emt 0:00:00]} 3. Nf3 {[%emt 0:00:01]} Nf6 {[%emt 0:00:01]} 4. g3 {[%emt 0:00:05]} g6 {[%emt 0:00:04]} 5. Bg2 {[%emt 0:00:01]} Bg7 {[%emt 0:00:00]} 6. O-O {[%emt 0:00:02]} O-O {[%emt 0:00:01]} 7. a4 {[%emt 0:00:05] 7.Nc3 is a critical line. D78: Fianchetto Grünfeld: 6 0-0 c6.} Ne4 {[%emt 0:00:07]} 8. Nc3 {[%emt 0:00:04]} Nxc3 9. bxc3 {[%emt 0:00:00][%cal Bb2c3,Bc3d4][%mdl 32] White is slightly better.} Nd7 {[%emt 0:00:07]} 10. a5 {[%emt 0:00:14]} dxc4 {[%emt 0:00:05]} 11. Qa4 {[%emt 0:00:01]} e5 {[%emt 0:00:02]} 12. Qxc4 {[%emt 0:00:07] White is more active.} exd4 {[%emt 0:00:02]} 13. cxd4 {[%emt 0:00:01] [#]} Re8 $146 {[%emt 0:00:08]} ({Predecessor:} 13... Nf6 14. a6 Qd5 15. axb7 Bxb7 16. Ne5 Qxc4 17. Nxc4 Nd5 18. e3 Rfc8 19. Ba3 Ba6 {1-0 (45) Svidler,P (2739)-Slugin,S (2369) St Petersburg 2015}) 14. e3 {[%emt 0:00:20][%cal Oa5a6]} (14. Ng5 {is more complex.} Qe7 15. Ne4 Nf6 16. Ba3) 14... c5 {[%emt 0:00:03]} 15. Bb2 {[%emt 0:00:04]} (15. Rd1 {simplifies} h6 16. Bb2 Rb8 17. Qc2) 15... b6 {[%emt 0:00:12] [#]} (15... Rb8 $14) 16. Ng5 $1 $18 {[%emt 0:00:17][%mdl 512]} Qxg5 {[%emt 0:00:09]} 17. Bxa8 {[%emt 0:00:01] Threatens to win with axb6.} cxd4 {[%emt 0:00:06]} (17... a6 {keeps fighting.} 18. Bd5 Rf8) 18. Bxd4 {[%emt 0:00:29]} Ne5 {[%emt 0:00:01]} 19. Bxe5 {[%emt 0:00:12]} Qxe5 {[%emt 0:00:02]} 20. Bc6 {[%emt 0:00:08]} Rf8 {[%emt 0:00:26]} 21. axb6 {[%emt 0:00:02]} axb6 {[%emt 0:00:01]} 22. Ra8 {[%emt 0:00:07]} Be6 {[%emt 0:00:07]} 23. Rxf8+ {[%emt 0:00:02]} Bxf8 {[%emt 0:00:02] This pair of bishops is nice.} 24. Qb5 {[%emt 0:00:06]} Bc5 {[%emt 0:00:10]} 25. Bg2 {[%emt 0:00:06]} Qc3 {[%emt 0:00:09]} 26. Qc6 {[%emt 0:00:07]} Bc4 {[%emt 0:00:21]} 27. Rd1 {[%emt 0:00:20]} Be2 {[%emt 0:00:06]} 28. Rb1 {[%emt 0:00:34]} Bd3 {[%emt 0:00:01]} 29. Rd1 {[%emt 0:00:06]} Be2 $1 {[%emt 0:00:00]} 30. Rb1 {[%emt 0:00:05]} Bd3 $1 {[%emt 0:00:01] Inhibits Bf1.   Weighted Error Value: White=0.29 (precise) /Black=0.19 (very precise)} 1/2-1/2

[Event "Romanian Team Blitz Open 2022"]
[Site "Sebes"]
[Date "2022.12.04"]
[Round "6.9"]
[White "Dragomirescu, Robin-Alexandru"]
[Black "Nastase, Robert-Paul"]
[Result "1-0"]
[ECO "A13"]
[WhiteElo "2337"]
[BlackElo "2229"]
[Annotator "TA"]
[PlyCount "107"]
[EventDate "2022.12.04"]
[EventType "blitz"]
[EventCountry "ROU"]
[SourceTitle "playchess.com"]
[Source "ChessBase"]
[SourceQuality "1"]
[TimeControl "180+2"]

{[%evp 22,107,-21,-30,-23,-27,-23,-23,-18,-23,-22,-22,-23,-23,-23,-21,-8,-36,0,-45,-23,-49,-43,-44,-11,-2,0,0,0,0,0,-7,-6,0,0,-18,20,18,53,38,123,119,151,148,149,154,156,154,118,125,185,117,111,-45,184,125,172,152,159,109,243,242,251,141,352,90,162,85,5701,5681,29991,1189,1089,1107,29987,832,2995,1933,29992,629,730,731,29991,29990,29996,29996,29997,29998]} 1. b3 {[%emt 0:00:01]} Nf6 {[%emt 0:00:04]} 2. Bb2 {[%emt 0:00:01]} e6 {[%emt 0:00:02]} 3. e3 {[%emt 0:00:03]} b6 {[%emt 0:00:03]} 4. Nf3 {[%emt 0:00:04]} Be7 {[%emt 0:00:02]} 5. Be2 {[%emt 0:00:16]} O-O {[%emt 0:00:02]} 6. O-O {[%emt 0:00:02]} Bb7 {[%emt 0:00:01]} 7. c4 {[%emt 0:00:04]} d5 {[%emt 0:00:05]} 8. cxd5 {[%emt 0:00:17]} Nxd5 {[%emt 0:00:05]} 9. d3 {[%emt 0:00:21]} c5 {[%emt 0:00:06]} 10. Nbd2 {[%emt 0:00:02]} Nc6 {[%emt 0:00:10]} 11. a3 {[%emt 0:00:02]} Bf6 {[%emt 0:00:07]} 12. Qc2 {[%emt 0:00:04]} Bxb2 {[%emt 0:00:02] A13: English Opening: 1...e6.} 13. Qxb2 {[%emt 0:00:01]} Qf6 {[%emt 0:00:02]} 14. Qxf6 {[%emt 0:00:01]} Nxf6 {[%emt 0:00:14] Black has an edge.} 15. Rfc1 {[%emt 0:00:10] is the legacy move (15.Rab1).} Rfd8 {[%emt 0:00:05]} 16. Rab1 {[%emt 0:00:04]} Nd5 {[%emt 0:01:20] Prevents b4.} 17. Nc4 {[%emt 0:00:25]} f6 {[%emt 0:00:07]} 18. Nfd2 {[%emt 0:00:10] [#]} Rd7 $146 {[%emt 0:00:18]} ({Predecessor:} 18... Kf7 19. Ne4 Ke7 20. Nc3 Rac8 21. Na2 Ba6 22. h4 h6 23. h5 f5 24. Re1 Nf6 {0-1 (51) Thoma,G-Poettinger,H (2260) Austria 1998}) 19. Kf1 {[%emt 0:00:16]} Kf7 {[%emt 0:00:02]} 20. Bf3 {[%emt 0:00:10]} Ke7 {[%emt 0:00:07]} 21. Ke2 {[%emt 0:00:03]} Rad8 {[%emt 0:00:07]} 22. Be4 {[%emt 0:00:37]} h5 {[%emt 0:00:14]} (22... f5 $5 {[%cal Rf5e4]} 23. Bf3 Kf6 $15) 23. f4 {[%emt 0:00:10]} g5 {[%emt 0:00:05]} 24. fxg5 fxg5 {[%emt 0:00:01]} 25. Nf3 {[%emt 0:00:14]} g4 {[%emt 0:00:09]} 26. Nfe5 {[%emt 0:00:02]} Nxe5 {[%emt 0:00:04]} 27. Nxe5 {[%emt 0:00:01]} Rc7 {[%emt 0:00:02]} 28. Kd2 {[%emt 0:00:06]} Rg8 {[%emt 0:00:05]} (28... Kf6 {seems wilder.} 29. Nc4 Nb4 30. Rf1+ Kg7) 29. Rf1 {[%emt 0:00:01][%cal Bc1f1,Bf1f6,Bf6h6][%mdl 32]} Kd6 {[%emt 0:00:03]} 30. Nc4+ {[%emt 0:00:04]} Kc6 {[%emt 0:00:01]} (30... Ke7 $1 $14) 31. Rf6 $16 {[%emt 0:00:02]} Re7 {[%emt 0:00:01]} 32. Rbf1 {[%emt 0:00:02]} Kc7 {[%emt 0:00:02]} 33. Rh6 {[%emt 0:00:02]} Rg5 {[%emt 0:00:02] Inhibits Ne5.} 34. Rf8 {[%emt 0:00:02] White is more active.} b5 {[%emt 0:00:03]} 35. Na5 {[%emt 0:00:02]} Ba6 {[%emt 0:00:03]} (35... b4 $16) 36. Bxd5 {[%emt 0:00:06]} (36. b4 $1 $18 {[%cal Rb4c5]} c4 37. g3) 36... Rxd5 {[%emt 0:00:01]} 37. Rff6 $2 {[%emt 0:00:05] [#]} ({Better is} 37. e4 $16 Rd6 38. Rxh5) 37... Rd6 {[%emt 0:00:02]} (37... b4 $15 38. Nc4 bxa3) 38. b4 {[%emt 0:00:01]} (38. Rxh5 $18 e5 39. Rxd6 Kxd6 40. Rh8) 38... c4 {[%emt 0:00:01]} (38... Red7 $16) 39. d4 $1 $18 {[%emt 0:00:01]} ({Stronger than} 39. Rxh5 Rxd3+ 40. Kc2 Rxa3 $11) 39... Bc8 {[%emt 0:00:03]} 40. Kc3 {[%emt 0:00:02]} (40. Rxh5 $142 {Strongly threatening Rc5+.} e5 41. Rxd6 Kxd6 42. a4) 40... Rd5 {[%emt 0:00:01]} (40... Bb7 $16 {keeps fighting.}) 41. e4 {[%emt 0:00:01]} Rg5 {[%emt 0:00:02]} 42. e5 {[%emt 0:00:02]} (42. Rh8 $18) 42... Bd7 $2 {[%emt 0:00:02] Against d5} (42... g3 $16 {might work better.} 43. h4 Rgg7) 43. g3 $2 {[%emt 0:00:01]} (43. Rf8 $18) 43... Reg7 {[%emt 0:00:03]} (43... Rg8 $16) 44. Rf8 {[%emt 0:00:02]} ({White should play} 44. a4 $18) 44... R7g6 $2 {[%emt 0:00:02][%mdl 8192]} (44... Rg8 $16 45. Rff6 a6) 45. Rhh8 {[%emt 0:00:03]} Rf5 {[%emt 0:00:02]} 46. Rxf5 {[%emt 0:00:01]} (46. Rb8 $142 Rf3+ 47. Kd2 Rd3+ 48. Ke2 Be8 49. Rhxe8 Rd2+ 50. Kxd2 c3+ 51. Kxc3 Kd7 52. Red8+ Ke7 53. Nc6+ Kf7 54. Rd7#) 46... exf5 {[%emt 0:00:01][%mdl 4096] Endgame KRB-KRN} 47. d5 {[%emt 0:00:01]} Rg7 {[%emt 0:00:03]} 48. Rf8 {[%emt 0:00:02]} (48. d6+ $142 Kb6 49. Rb8+ Ka6 50. Rb7 h4 51. Rc7 hxg3 52. hxg3 Kb6 53. e6) 48... Bc8 {[%emt 0:00:03]} 49. Kd4 {[%emt 0:00:02] [#] Intending d6+ and mate.} h4 {[%emt 0:00:03]} 50. e6 {[%emt 0:00:02]} (50. d6+ $142 Kb8 51. e6 Rc7 52. e7 Rc6 53. Nxc6+ Kb7 54. e8=Q Kb6 55. Qxc8 hxg3 56. Qc7+ Ka6 57. Qxa7#) 50... hxg3 {[%emt 0:00:02]} 51. hxg3 {[%emt 0:00:01] Threatening mate with Rf7+.} (51. Rxf5 $2 {is the wrong capture.} g2 52. Ke4 g1=Q $19) 51... Rh7 {[%emt 0:00:02]} 52. Kc5 {[%emt 0:00:01] White mates.} Rh3 {[%emt 0:00:03]} 53. d6+ {[%emt 0:00:01][%cal Bd5d6,Bd6d7][%mdl 32]} Kb8 {[%emt 0:00:01]} 54. d7 {[%emt 0:00:03] Weighted Error Value: White=0.50/Black=0.82} 1-0